bitfinex-derivatives/quotes_BNBF0:USTF0_20250315
["timestamp","ask_amount","ask_price","bid_price","bid_amount"]
[1742018668558,0.3074488,595.04,593.9,2.711]
[1742018668753,0.3074488,595.03,593.9,2.711]
[1742018668955,0.3074488,595.02,593.9,2.711]
[1742018669158,0.3074488,595.01,593.9,2.711]
[1742018669361,0.3074488,595.0,593.9,2.711]
[1742018669662,0.3074488,594.99,593.9,2.711]
[1742018669856,0.29282207,594.99,593.9,2.711]
[1742018670061,0.30744536,594.98,593.9,2.711]
[1742018672355,0.29282207,594.99,593.9,2.711]
[1742018672557,0.30744484,594.98,593.9,2.711]
[1742018672964,0.30744484,594.97,593.9,2.711]
[1742018673160,0.2928307,594.97,593.9,2.711]
[1742018673361,0.30744484,594.96,593.9,2.711]
[1742018674864,0.30744484,594.96,593.9,3.773]
[1742018675864,0.29283316,594.95,593.9,3.773]
[1742018676065,0.30744484,594.94,593.9,3.773]
[1742018677568,0.30744371,594.93,593.9,3.773]
[1742018677868,0.30744371,594.92,593.9,3.773]
[1742018678068,0.30744371,594.94,593.9,3.773]
[1742018678263,0.30744371,594.93,593.9,3.773]
[1742018678569,0.30744371,594.92,593.9,3.773]
[1742018678770,0.30744371,594.94,593.9,3.773]
[1742018678969,0.30744371,594.93,593.9,3.773]
[1742018679268,0.29283562,594.94,593.9,3.773]
[1742018679469,0.30743433,594.93,593.9,3.773]
[1742018679967,0.30743827,594.92,593.9,3.773]
[1742018680169,0.30743827,594.93,593.9,3.773]
[1742018680369,0.30743827,594.92,593.9,3.773]
[1742018680571,0.30743827,594.91,593.9,3.773]
[1742018680766,0.30743827,594.9,593.9,3.773]
[1742018680971,0.30743827,594.93,593.9,3.773]
[1742018681171,0.29283562,594.94,593.9,3.773]
[1742018681172,0.30743827,594.92,593.9,3.773]
[1742018681367,0.30743827,594.91,593.9,3.773]
[1742018681671,0.30743827,594.9,593.9,3.773]
[1742018681869,0.30743827,595.12,593.9,3.773]
[1742018682071,0.29283686,594.94,593.9,3.773]
[1742018682266,0.30743827,594.93,593.9,5.35]
[1742018682572,0.30743827,594.92,593.9,5.35]
[1742018682871,0.30743827,594.91,593.9,5.35]
[1742018683278,0.30743827,594.9,593.9,5.35]
[1742018683473,0.30743827,595.1,593.9,5.35]
[1742018683672,0.30743827,595.09,593.9,5.35]
[1742018683872,0.29281591,595.09,593.9,5.35]
[1742018684074,0.30743827,595.08,593.9,5.35]
[1742018684977,0.30744751,595.07,593.9,5.35]
[1742018685178,0.30744751,595.08,593.9,5.35]
[1742018685578,0.30744751,595.08,593.9,6.655]
[1742018685977,0.30744751,595.08,593.9,8.017]
[1742018687883,0.29281838,595.07,593.9,8.017]
[1742018688284,0.30744751,595.06,593.9,8.017]
[1742018690883,0.30744751,595.1,593.9,8.017]
[1742018691086,0.29282084,595.05,593.9,8.017]
[1742018691288,0.30744751,595.04,593.9,8.017]
[1742018692190,0.29282084,595.05,593.9,8.017]
[1742018692391,0.30745541,595.04,593.9,8.017]
[1742018693989,0.29282084,595.05,593.9,8.017]
[1742018694192,0.3074528,595.04,593.9,8.017]
[1742018696092,0.3074528,595.04,593.9,9.534]
[1742018696795,0.3074528,595.04,593.9,11.094]
[1742018697897,0.29282084,595.05,593.9,11.094]
[1742018698101,0.30747299,595.04,593.9,11.094]
[1742018703002,0.29283562,595.03,593.9,11.094]
[1742018703205,0.30747299,595.02,593.9,11.094]
[1742018704706,0.29283562,595.03,593.9,11.094]
[1742018704904,0.30747709,595.02,593.9,11.094]
[1742018706005,0.29283809,595.01,593.9,11.094]
[1742018706406,0.30747709,595.0,593.9,11.094]
[1742018706804,0.30747316,594.99,593.9,11.094]
[1742018707009,0.30747316,594.98,593.9,11.094]
[1742018707308,0.30747316,594.97,593.9,11.094]
[1742018707509,0.30747316,594.96,593.9,11.094]
[1742018707710,0.30747316,595.0,593.9,11.094]
[1742018708004,0.30747316,594.99,593.9,11.266]
[1742018708209,0.30747316,594.98,593.9,11.266]
[1742018708409,0.30747316,594.97,593.9,11.266]
[1742018708603,0.29283809,595.01,593.9,11.266]
[1742018708604,0.30747109,594.96,593.9,11.266]
[1742018708804,0.30747109,595.0,593.9,11.266]
[1742018709011,0.30747109,594.99,593.9,11.266]
[1742018709207,0.30747109,595.0,593.9,11.266]
[1742018712010,0.60031164,594.99,593.9,11.266]
[1742018712212,0.30747109,594.98,593.9,11.266]
[1742018716112,0.30747385,594.97,593.9,11.266]
[1742018716314,0.30747385,594.98,593.9,11.266]
[1742018717913,0.29284302,594.97,593.9,11.266]
[1742018718113,0.30747385,594.96,593.9,11.266]
[1742018721115,0.60031933,594.95,593.9,11.266]
[1742018721314,0.30747385,594.94,593.9,11.266]
[1742018724112,0.60033165,594.93,593.9,11.266]
[1742018724313,0.30747385,594.92,593.9,11.266]
[1742018725317,0.2928578,594.93,593.9,11.266]
[1742018725514,0.3074863,594.91,593.9,11.266]
[1742018725816,0.3074863,594.9,593.9,11.266]
[1742018726016,0.3074863,594.92,593.9,11.266]
[1742018729122,0.3074946,594.91,593.9,11.266]
[1742018729320,0.3074946,594.92,593.9,11.266]
[1742018729520,0.3074946,594.91,593.9,11.266]
[1742018729716,0.3074946,594.92,593.9,11.266]
[1742018729917,0.3074946,594.91,593.9,11.266]
[1742018730120,0.29285041,594.9,593.9,11.266]
[1742018730315,0.3074946,594.89,593.9,11.266]
[1742018730516,0.29285041,594.9,593.9,11.266]
[1742018730921,0.30745282,594.89,593.9,11.266]
[1742018732719,0.29285041,594.9,593.9,11.266]
[1742018732921,0.30744359,594.89,593.9,11.266]
[1742018736033,0.29286027,594.88,593.9,11.266]
[1742018736525,0.30744359,594.87,593.9,11.266]
[1742018738930,0.33607232,595.11,593.9,11.266]
[1742018738931,0.30744359,595.1,593.9,11.266]
[1742018739128,0.33608361,595.09,593.9,11.266]
[1742018739325,0.30744359,595.08,593.9,11.266]
[1742018739536,0.33609491,595.07,593.9,11.266]
[1742018739738,0.30744359,595.06,593.9,11.266]
[1742018740935,0.62894675,595.05,593.9,11.266]
[1742018741141,0.64355544,595.04,593.9,11.266]
[1742018741341,0.64356109,595.03,593.9,11.266]
[1742018741542,0.30744359,595.02,593.9,11.266]
[1742018742036,0.29284548,595.01,593.9,11.266]
[1742018742240,0.30744359,595.0,593.9,11.266]
[1742018743843,0.30749505,594.99,593.9,11.266]
[1742018744043,0.30749505,595.0,593.9,11.266]
[1742018744943,0.30749505,595.02,593.9,11.266]
[1742018745138,0.30749505,595.01,593.9,11.266]
[1742018745344,0.30749505,595.02,593.9,11.266]
[1742018745639,0.30749373,595.01,593.9,11.266]
[1742018745843,0.30749373,595.0,593.9,11.266]
[1742018746038,0.30749373,595.02,593.9,11.266]
[1742018746344,0.30749373,595.01,593.9,11.266]
[1742018746541,0.30749373,595.02,593.9,11.266]
[1742018746741,0.30749373,595.01,593.9,11.266]
[1742018746941,0.60033921,595.0,593.9,11.266]
[1742018747237,0.30749373,594.99,593.9,11.266]
[1742018747637,0.29284548,595.0,593.9,11.266]
[1742018747841,0.30749313,594.99,593.9,11.266]
[1742018748040,0.29284548,594.99,593.9,11.266]
[1742018748244,0.30749313,594.98,593.9,11.266]
[1742018751047,0.29285041,594.97,593.9,11.266]
[1742018751442,0.30749313,594.96,593.9,11.266]
[1742018753049,0.29285041,594.97,593.9,11.266]
[1742018753247,0.30749323,594.96,593.9,11.266]
[1742018754049,0.60034611,594.95,593.9,11.266]
[1742018754248,0.30749323,594.94,593.9,11.266]
[1742018756950,0.30749323,595.02,593.9,11.266]
[1742018757250,0.29285534,594.93,593.9,11.266]
[1742018757452,0.30749323,594.92,593.9,11.266]
[1742018757652,0.30749323,595.02,593.9,11.266]
[1742018757852,0.30749323,595.01,593.9,11.266]
[1742018758053,0.30749323,595.02,593.9,11.266]
[1742018758253,0.30749323,595.01,593.9,11.266]
[1742018758554,0.30749323,595.0,593.9,11.266]
[1742018758749,0.3361175,595.03,593.9,11.266]
[1742018758955,0.30749295,595.02,593.9,11.266]
[1742018759950,0.29284548,595.01,593.9,11.266]
[1742018760153,0.30749295,595.0,593.9,11.266]
[1742018763058,0.29284795,594.99,593.9,11.266]
[1742018763260,0.30749295,594.98,593.9,11.266]
[1742018765053,0.30748723,594.97,593.9,11.266]
[1742018765258,0.30748723,594.98,593.9,11.266]
[1742018765459,0.30748723,594.97,593.9,11.266]
[1742018765658,0.30748723,594.98,593.9,11.266]
[1742018766053,0.29285041,594.97,593.9,11.266]
[1742018766258,0.30748723,594.96,593.9,11.266]
[1742018767761,0.30748965,594.95,593.9,11.266]
[1742018767961,0.30748965,594.96,593.9,11.266]
[1742018768158,0.30748965,594.95,593.9,11.266]
[1742018768361,0.30748965,594.96,593.9,11.266]
[1742018768658,0.30748965,594.95,593.9,11.266]
[1742018768858,0.30748965,594.94,593.9,11.266]
[1742018769060,0.30748965,594.93,593.9,11.266]
[1742018769256,0.30748965,594.92,593.9,11.266]
[1742018769660,0.30748965,594.91,593.9,11.266]
[1742018769856,0.30748965,594.94,593.9,11.266]
[1742018770055,0.30748965,594.93,593.9,11.266]
[1742018770260,0.30748965,594.94,593.9,11.266]
[1742018770561,0.30748965,594.93,593.9,11.266]
[1742018770757,0.30748965,594.94,593.9,11.266]
[1742018771561,0.30749929,594.93,593.9,11.266]
[1742018771864,0.30749929,594.92,593.9,11.266]
[1742018772064,0.29285534,594.92,593.9,11.266]
[1742018772267,0.30749929,594.91,593.9,11.266]
[1742018774962,0.29285904,594.9,593.9,11.266]
[1742018775164,0.30749929,594.89,593.9,11.266]
[1742018780866,0.30750934,594.88,593.9,11.266]
[1742018781061,0.2928615,594.88,593.9,11.266]
[1742018781267,0.30750934,594.87,593.9,11.266]
[1742018782567,0.2928615,594.88,593.9,11.266]
[1742018782766,0.30750304,594.87,593.9,11.266]
[1742018783270,0.2928615,594.88,593.9,11.266]
[1742018783770,0.3361175,595.03,593.9,11.266]
[1742018783971,0.30747896,595.02,593.9,11.266]
[1742018784171,0.29283316,594.88,593.9,11.266]
[1742018784370,0.3361175,595.03,593.9,11.266]
[1742018784671,0.30747831,595.02,593.9,11.266]
[1742018786867,0.29283316,595.01,593.9,11.266]
[1742018787069,0.30747831,595.0,593.9,11.266]
[1742018789976,0.30747831,594.99,593.9,11.266]
[1742018790171,0.30747831,594.98,593.9,11.266]
[1742018792976,0.30747831,595.02,593.9,11.266]
[1742018793184,0.29283809,594.97,593.9,11.266]
[1742018793476,0.30747831,594.96,593.9,11.266]
[1742018798880,0.30747831,595.02,593.9,11.266]
[1742018799082,0.2928307,594.95,593.9,11.266]
[1742018799282,0.30745635,594.94,593.9,11.266]
[1742018799476,0.30745635,595.02,593.9,11.266]
[1742018799680,0.30745635,595.01,593.9,11.266]
[1742018799877,0.30745635,595.02,593.9,11.266]
[1742018801384,0.30747488,595.01,593.9,11.266]
[1742018801578,0.30747488,595.02,593.9,11.266]
[1742018801783,0.30747488,595.01,593.9,11.266]
[1742018801984,0.29283316,595.0,593.9,11.266]
[1742018802180,0.30747488,594.99,593.9,11.266]
[1742018805083,0.3361175,595.03,593.9,11.266]
[1742018805084,0.29283686,594.98,593.9,11.266]
[1742018805485,0.30747488,594.97,593.9,11.266]
[1742018806684,0.29283686,594.98,593.9,11.266]
[1742018806888,0.30746686,594.97,593.9,11.266]
[1742018808090,0.60030618,594.96,593.9,11.266]
[1742018808294,0.30746686,594.95,593.9,11.266]
[1742018810596,0.29283932,594.96,593.9,11.266]
[1742018810794,0.30746499,594.95,593.9,11.266]
[1742018813999,0.30746499,595.02,593.9,11.266]
[1742018814202,0.29284179,594.94,593.9,11.266]
[1742018814401,0.30746499,594.93,593.9,11.266]
[1742018814597,0.30746499,595.02,593.9,11.266]
[1742018814802,0.30746499,595.01,593.9,11.266]
[1742018815002,0.30746499,595.02,593.9,11.266]
[1742018815201,0.30746499,595.01,593.9,11.266]
[1742018815402,0.30746499,595.0,593.9,11.266]
[1742018815602,0.30746499,595.02,593.9,11.266]
[1742018815802,0.30746499,595.01,593.9,11.266]
[1742018815999,0.29283316,595.01,593.9,11.266]
[1742018816502,0.3074676,595.0,593.9,11.266]
[1742018816904,0.3074676,595.02,593.9,11.266]
[1742018817204,0.29283562,594.99,593.9,11.266]
[1742018817410,0.3074676,594.98,593.9,11.266]
[1742018820004,0.60030569,594.97,593.9,11.266]
[1742018820202,0.3074676,594.96,593.9,11.266]
[1742018823108,0.29284055,594.95,593.9,11.266]
[1742018823304,0.30747437,594.94,593.9,11.266]
[1742018825210,0.29284055,594.95,593.9,11.266]
[1742018825411,0.30746767,594.94,593.9,11.266]
[1742018826111,0.29284302,594.93,593.9,11.266]
[1742018826510,0.30746767,594.92,593.9,11.266]
[1742018829113,0.29287506,594.91,593.9,11.266]
[1742018829513,0.30746767,594.9,593.9,11.266]
[1742018832114,0.29288492,594.89,593.9,11.266]
[1742018832513,0.30746767,594.88,593.9,11.266]
[1742018834418,0.29288492,594.89,593.9,11.266]
[1742018834617,0.3075645,594.88,593.9,11.266]
[1742018836324,0.30756714,594.87,593.9,11.266]
[1742018836519,0.30756714,594.88,593.9,11.266]
[1742018837921,0.30756714,595.02,593.9,11.266]
[1742018838119,0.29289231,594.87,593.9,11.266]
[1742018838421,0.30755502,594.86,593.9,11.266]
[1742018838616,0.30755502,595.0,593.9,11.266]
[1742018838822,0.64369512,594.99,593.9,11.266]
[1742018839019,0.64370077,594.98,593.9,11.266]
[1742018839217,0.64370642,594.97,593.9,11.266]
[1742018839416,0.64371207,594.96,593.9,11.266]
[1742018839615,0.64371772,594.95,593.9,11.266]
[1742018839817,0.30755502,594.94,593.9,11.266]
[1742018840223,0.30759535,594.93,593.9,11.266]
[1742018840422,0.30759535,594.92,593.9,11.266]
[1742018840617,0.30759535,594.94,593.9,11.266]
[1742018840824,0.30759535,594.93,593.9,11.266]
[1742018841122,0.30759535,594.92,593.9,11.266]
[1742018841424,0.3361853,594.91,593.9,11.266]
[1742018841722,0.30759535,594.9,593.9,11.266]
[1742018842022,0.64378834,594.89,593.9,11.266]
[1742018842223,0.64379399,594.88,593.9,11.266]
[1742018842416,0.64379965,594.87,593.9,11.266]
[1742018842617,0.30759174,594.86,593.9,11.266]
[1742018844024,0.29290464,594.85,593.9,11.266]
[1742018844224,0.30759174,594.84,593.9,11.266]
[1742018845723,0.29290464,594.85,593.9,11.266]
[1742018845926,0.30758525,594.84,593.9,11.266]
[1742018846920,0.30758525,594.86,593.9,11.266]
[1742018847126,0.2929071,594.83,593.9,11.266]
[1742018847321,0.30758525,594.82,593.9,11.266]
[1742018847621,0.30759127,594.81,593.9,11.266]
[1742018847826,0.30759127,594.8,593.9,11.266]
[1742018848022,0.30759127,594.79,593.9,11.266]
[1742018848223,0.30759127,594.82,593.9,11.266]
[1742018848424,0.30759127,594.81,593.9,11.266]
[1742018848723,0.2929071,594.83,593.9,11.266]
[1742018848724,0.30759127,594.8,593.9,11.266]
[1742018848921,0.30759127,594.82,593.9,11.266]
[1742018849226,0.30759127,594.81,593.9,11.266]
[1742018849427,0.30759127,594.82,593.9,11.266]
[1742018850228,0.60050084,594.81,593.9,11.266]
[1742018850427,0.30759127,594.8,593.9,11.266]
[1742018851228,0.3075906,594.79,593.9,11.266]
[1742018851523,0.3075906,594.8,593.9,11.266]
[1742018851727,0.3075906,594.79,593.9,11.266]
[1742018851928,0.3075906,594.8,593.9,11.266]
[1742018852227,0.29290957,594.81,593.9,11.266]
[1742018852228,0.3075906,594.79,593.9,11.266]
[1742018852427,0.3075906,594.8,593.9,11.266]
[1742018852627,0.3075906,594.79,593.9,11.266]
[1742018853028,0.3075906,594.78,593.9,11.266]
[1742018853227,0.29291203,594.78,593.9,11.266]
[1742018855731,4.71261983,595.43,593.9,11.266]
[1742018855933,5.02019906,595.42,593.9,11.266]
[1742018856232,5.02019906,595.41,593.9,11.266]
[1742018856428,0.30757923,595.4,593.9,11.266]
[1742018856734,0.30757923,595.39,593.9,11.266]
[1742018856934,0.30757923,595.38,593.9,11.266]
[1742018857134,0.29283439,595.39,593.9,11.266]
[1742018857330,0.30757923,595.38,593.9,11.266]
[1742018859038,0.60041978,595.37,593.9,11.266]
[1742018859236,0.29284055,595.37,593.9,11.266]
[1742018859435,0.30757386,595.36,593.9,11.266]
[1742018861939,0.30757386,595.69,593.9,11.266]
[1742018862137,0.29284302,595.35,593.9,11.266]
[1742018862338,0.30757386,595.34,593.9,11.266]
[1742018862537,0.30759101,595.33,593.9,11.266]
[1742018862737,2.70079168,595.68,593.9,11.266]
[1742018863037,0.30759101,595.67,593.9,11.266]
[1742018863237,0.30759101,595.66,593.9,11.266]
[1742018863437,0.30759101,595.65,593.9,11.266]
[1742018863638,0.30759101,595.64,593.9,11.266]
[1742018863838,0.30759101,595.63,593.9,11.266]
[1742018864139,0.30759101,595.62,593.9,11.266]
[1742018864341,0.30760236,595.61,593.9,11.266]
[1742018864538,0.30760236,595.6,593.9,11.266]
[1742018864839,0.30760236,595.59,593.9,11.266]
[1742018865038,0.30760236,595.58,593.9,11.266]
[1742018865334,2.56461227,595.38,593.9,11.266]
[1742018865535,0.30760236,595.37,593.9,11.266]
[1742018865741,0.30760236,595.36,593.9,11.266]
[1742018865938,0.30760236,595.35,593.9,11.266]
[1742018866137,0.30764289,595.34,593.9,11.266]
[1742018866336,0.30764289,595.33,593.9,11.266]
[1742018866534,0.30764289,595.32,593.9,11.266]
[1742018866738,2.39320067,595.6,593.9,11.266]
[1742018866739,0.30764289,595.31,593.9,11.266]
[1742018866936,0.30764289,595.3,593.9,11.266]
[1742018867136,0.30764289,595.29,593.9,11.266]
[1742018867337,0.30764289,595.28,593.9,11.266]
[1742018867539,0.30764289,595.27,593.9,11.266]
[1742018867839,0.30764289,595.26,593.9,11.266]
[1742018868139,0.30764543,595.25,593.9,11.266]
[1742018868340,0.30764543,595.24,593.9,11.266]
[1742018868534,0.30764543,595.26,593.9,11.266]
[1742018868738,0.30764543,595.25,593.9,11.266]
[1742018868936,0.30764543,595.24,593.9,11.266]
[1742018869137,0.33601021,595.22,593.9,11.266]
[1742018869341,0.30764543,595.21,593.9,11.266]
[1742018869642,0.33602715,595.19,593.9,11.266]
[1742018869936,0.30764543,595.18,593.9,11.266]
[1742018870141,0.33604408,595.16,593.9,11.266]
[1742018870335,0.30764543,595.15,593.9,11.266]
[1742018870539,0.33606102,595.13,593.9,11.266]
[1742018870738,0.30764543,595.12,593.9,11.266]
[1742018871137,0.33607797,595.1,593.9,11.266]
[1742018871339,0.30764543,595.09,593.9,11.266]
[1742018872237,0.33609491,595.07,593.9,11.266]
[1742018872435,0.30764543,595.06,593.9,11.266]
[1742018872641,0.33611185,595.04,593.9,11.266]
[1742018872837,0.30764543,595.03,593.9,11.266]
[1742018873038,0.3361288,595.01,593.9,11.266]
[1742018873243,0.30764543,595.0,593.9,11.266]
[1742018873844,0.33614575,594.98,593.9,11.266]
[1742018874143,0.30764543,594.97,593.9,11.266]
[1742018874343,0.3361627,594.95,593.9,11.266]
[1742018874545,0.30764543,594.94,593.9,11.266]
[1742018874742,0.33617965,594.92,593.9,11.266]
[1742018874941,0.30764543,594.91,593.9,11.266]
[1742018875142,0.33619095,594.9,593.9,11.266]
[1742018875643,0.30767525,594.89,593.9,11.266]
[1742018875841,0.33620225,594.88,593.9,11.266]
[1742018876038,0.30767525,594.87,593.9,11.266]
[1742018876242,0.33621356,594.86,593.9,11.266]
[1742018876438,0.30767525,594.85,593.9,11.266]
[1742018876639,0.33622486,594.84,593.9,11.266]
[1742018876840,0.30767525,594.83,593.9,11.266]
[1742018877042,0.33623617,594.82,593.9,11.266]
[1742018877240,0.30767525,594.81,593.9,11.266]
[1742018877441,0.33624747,594.8,593.9,11.266]
[1742018877641,0.30767525,594.79,593.9,11.266]
[1742018877841,0.33625878,594.78,593.9,11.266]
[1742018878043,0.30767525,594.77,593.9,11.266]
[1742018878243,0.33627009,594.76,593.9,11.266]
[1742018878443,0.30767525,594.75,593.9,11.266]
[1742018878648,0.3362814,594.74,593.9,11.266]
[1742018878942,0.30767525,594.73,593.9,11.266]
[1742018879140,0.3362927,594.72,593.9,11.266]
[1742018879340,0.30767525,594.71,593.9,11.266]
[1742018879544,0.33630401,594.7,593.9,11.266]
[1742018879743,0.30767525,594.69,593.9,11.266]
[1742018879947,0.33631532,594.68,593.9,11.266]
[1742018880147,0.30767525,594.67,593.9,11.266]
[1742018880348,0.33632664,594.66,593.9,11.266]
[1742018880549,0.30767525,594.65,593.9,11.266]
[1742018880845,0.64403556,594.64,593.9,11.266]
[1742018881149,0.64404121,594.63,593.9,11.266]
[1742018881343,0.64404687,594.62,593.9,11.266]
[1742018881549,0.30769761,594.61,593.9,11.266]
[1742018881848,0.33636057,594.6,593.9,11.266]
[1742018882054,0.30769761,594.59,593.9,11.266]
[1742018882256,0.33637189,594.58,593.9,11.266]
[1742018882460,0.30769761,594.57,593.9,11.266]
[1742018882653,0.3363832,594.56,593.9,11.266]
[1742018882957,0.30769761,594.55,593.9,11.266]
[1742018883257,0.60071076,594.55,593.9,11.266]
[1742018883456,0.30769761,594.54,593.9,11.266]
[1742018885557,0.29301315,594.55,593.9,11.266]
[1742018885757,0.3363832,594.56,593.9,11.266]
[1742018887361,0.30770034,594.55,593.9,11.266]
[1742018888059,0.3363832,594.56,593.9,11.266]
[1742018889161,0.29287506,594.55,593.9,11.266]
[1742018890761,0.3076626,594.54,593.9,11.266]
[1742018891663,0.29287506,594.55,593.9,11.266]
[1742018891864,0.30766098,594.54,593.9,11.266]
[1742018892062,0.30766098,594.55,593.9,11.266]
[1742018892260,0.60064823,594.54,593.9,11.266]
[1742018892460,0.30766098,594.53,593.9,11.266]
[1742018895160,0.29298972,594.52,593.9,11.266]
[1742018895464,0.30766605,594.51,593.9,11.266]
[1742018897762,0.3363832,594.56,593.9,11.266]
[1742018897965,0.29299218,594.5,593.9,11.266]
[1742018898165,0.30765423,594.49,593.9,11.266]
[1742018901063,0.29299465,594.49,593.9,11.266]
[1742018901264,0.30765423,594.48,593.9,11.266]
[1742018902864,0.29299465,594.49,593.9,11.266]
[1742018903761,0.3363832,594.56,593.9,11.266]
[1742018904265,0.29294779,594.55,593.9,11.266]
[1742018909768,0.3363832,594.56,593.9,11.266]
[1742018910170,0.29289601,594.55,593.9,11.266]
[1742018912871,0.3363832,594.56,593.9,11.266]
[1742018913180,0.29298725,594.54,593.9,11.266]
[1742018915872,0.3363832,594.56,593.9,11.266]
[1742018916070,0.29298725,594.53,593.9,11.266]
[1742018918872,0.3363832,594.56,593.9,11.266]
[1742018919073,0.29298725,594.52,593.9,11.266]
[1742018921782,0.3363832,594.56,593.9,11.266]
[1742018922179,0.29298725,594.51,593.9,11.266]
[1742018924781,0.3363832,594.56,593.9,11.266]
[1742018930987,0.29284671,594.69,593.9,11.266]
[1742018933888,2.4000066,595.26,593.9,11.266]
[1742018934088,0.33599892,595.24,593.9,11.266]
[1742018934388,0.29285164,594.69,593.9,11.266]
[1742018934587,0.33599892,595.24,593.9,11.266]
[1742018934782,2.73600552,595.24,593.9,11.266]
[1742018935088,6.16647379,595.24,593.9,11.266]
[1742018935285,4.71295121,595.23,593.9,11.266]
[1742018935486,0.33601585,595.21,593.9,11.266]
[1742018936188,0.29285657,595.2,593.9,11.266]
[1742018936680,0.33603279,595.18,593.9,11.266]
[1742018938891,2.73603939,595.18,593.9,11.266]
[1742018939986,6.16650766,595.18,593.9,11.266]
[1742018940186,5.00580285,595.17,593.9,11.266]
[1742018940386,0.33604973,595.15,593.9,11.266]
[1742018941491,7.44900754,595.15,593.9,11.266]
[1742018941690,2.4000066,595.14,593.9,11.266]
[1742018941894,0.33606667,595.12,593.9,11.266]
[1742018943194,0.2928578,595.11,593.9,11.266]
[1742018943496,0.33608361,595.09,593.9,11.266]
[1742018946197,0.2928615,595.08,593.9,11.266]
[1742018946394,2.6928681,595.08,593.9,11.266]
[1742018946795,0.33609491,595.07,593.9,11.266]
[1742018947805,7.44905272,595.07,593.9,11.266]
[1742018947999,2.4000066,595.06,593.9,11.266]
[1742018948202,0.3361062,595.05,593.9,11.266]
[1742018948801,7.44906401,595.05,593.9,11.266]
[1742018948995,2.4000066,595.04,593.9,11.266]
[1742018949195,0.3361175,595.03,593.9,11.266]
[1742018949803,7.44907531,595.03,593.9,11.266]
[1742018950000,2.4000066,595.02,593.9,11.266]
[1742018950300,0.3361288,595.01,593.9,11.266]
[1742018951099,7.44908661,595.01,593.9,11.266]
[1742018951297,2.4000066,595.0,593.9,11.266]
[1742018951599,0.3361401,594.99,593.9,11.266]
[1742018952302,0.29286889,594.98,593.9,11.266]
[1742018952502,0.3361514,594.97,593.9,11.266]
[1742018953800,7.44910921,594.97,593.9,11.266]
[1742018954002,2.4000066,594.96,593.9,11.266]
[1742018954200,0.3361627,594.95,593.9,11.266]
[1742018954803,7.44912051,594.95,593.9,11.266]
[1742018955002,2.4000066,594.94,593.9,11.266]
[1742018955203,0.336174,594.93,593.9,11.266]
[1742018956203,7.44913181,594.93,593.9,11.266]
[1742018956403,5.04912521,594.93,593.9,11.266]
[1742018956597,4.71295121,594.92,593.9,11.266]
[1742018956798,0.336174,594.93,593.9,11.266]
[1742018961407,0.29287629,594.92,593.9,11.266]
[1742018963808,0.336174,594.93,593.9,11.266]
[1742018964210,0.29286766,594.91,593.9,11.266]
[1742018964806,0.30749518,594.9,593.9,11.266]
[1742018965511,0.29286766,594.91,593.9,11.266]
[1742018965718,0.30748801,594.9,593.9,11.266]
[1742018965915,0.29286766,594.91,593.9,11.266]
[1742018966515,0.30749076,594.9,593.9,11.266]
[1742018967115,0.30749076,594.89,593.9,11.266]
[1742018967316,0.29287013,594.89,593.9,11.266]
[1742018967518,0.30748819,594.88,593.9,11.266]
[1742018967717,0.30749104,594.87,593.9,11.266]
[1742018967918,0.30749104,594.88,593.9,11.266]
[1742018968113,0.30749104,594.87,593.9,11.266]